[Event "*** Titled Tuesday Blitz"]
[Site "Chess.com"]
[Date "2019.03.05"]
[Round "1"]
[White "payto1"]
[Black "UCantHandleDenker"]
[Result "0-1"]
[WhiteElo "2132"]
[BlackElo "2525"]
[TimeControl "180+2"]
[EndTime "13:09:09 PST"]
[Termination "UCantHandleDenker won on time"]

1. d4 {[%clk 0:02:58.3]} 1... Nf6 {[%clk 0:02:57.9]} 2. c4 {[%clk 0:02:59]} 2...
g6 {[%clk 0:02:56.4]} 3. Nc3 {[%clk 0:02:51.3]} 3... Bg7 {[%clk 0:02:56.5]} 4.
e4 {[%clk 0:02:52]} 4... d6 {[%clk 0:02:56.9]} 5. Nf3 {[%clk 0:02:52.1]} 5...
O-O {[%clk 0:02:56.6]} 6. Be2 {[%clk 0:02:52.5]} 6... e5 {[%clk 0:02:55.1]} 7.
d5 {[%clk 0:02:52.8]} 7... a5 {[%clk 0:02:55]} 8. h3 {[%clk 0:02:52.9]} 8... Na6
{[%clk 0:02:55.2]} 9. Bg5 {[%clk 0:02:54.1]} 9... h6 {[%clk 0:02:53.5]} 10. Be3
{[%clk 0:02:53.8]} 10... h5 {[%clk 0:02:37]} 11. Nd2 {[%clk 0:02:47.5]} 11...
Qd7 {[%clk 0:02:32.7]} 12. a3 {[%clk 0:02:37.3]} 12... h4 {[%clk 0:02:08.4]} 13.
b4 {[%clk 0:02:36.5]} 13... Nh7 {[%clk 0:02:06.7]} 14. Nf3 {[%clk 0:02:13.9]}
14... Qe7 {[%clk 0:02:05.2]} 15. Qd2 {[%clk 0:01:49.8]} 15... f5 {[%clk
0:02:02.3]} 16. Bh6 {[%clk 0:01:48.4]} 16... Bd7 {[%clk 0:01:54.1]} 17. Rb1
{[%clk 0:01:42.1]} 17... axb4 {[%clk 0:01:42.5]} 18. axb4 {[%clk 0:01:40.3]}
18... c5 {[%clk 0:01:41.3]} 19. dxc6 {[%clk 0:01:23.9]} 19... bxc6 {[%clk
0:01:40.6]} 20. Bxg7 {[%clk 0:01:21.4]} 20... Kxg7 {[%clk 0:01:41]} 21. O-O
{[%clk 0:01:15.7]} 21... Rfb8 {[%clk 0:01:26.6]} 22. Rfd1 {[%clk 0:00:58.9]}
22... Nxb4 {[%clk 0:01:13.2]} 23. Qxd6 {[%clk 0:00:54.2]} 23... Qxd6 {[%clk
0:01:11.7]} 24. Rxd6 {[%clk 0:00:41.1]} 24... Be8 {[%clk 0:01:11.2]} 25. exf5
{[%clk 0:00:36.2]} 25... gxf5 {[%clk 0:01:08.4]} 26. Nxe5 {[%clk 0:00:36.4]}
26... Nf6 {[%clk 0:01:03.8]} 27. Bf3 {[%clk 0:00:32.9]} 27... Ra3 {[%clk
0:01:00.2]} 28. Ne2 {[%clk 0:00:24.7]} 28... c5 {[%clk 0:00:47.3]} 29. Nf4
{[%clk 0:00:23.6]} 29... Rc8 {[%clk 0:00:30.1]} 30. Ne6+ {[%clk 0:00:16.5]}
30... Kg8 {[%clk 0:00:30.4]} 31. Rbd1 {[%clk 0:00:09.8]} 31... Kh7 {[%clk
0:00:14.3]} 32. Rd8 {[%clk 0:00:10.9]} 32... Rxd8 {[%clk 0:00:14.8]} 33. Rxd8
{[%clk 0:00:11.6]} 33... Ba4 {[%clk 0:00:15.8]} 34. Rf8 {[%clk 0:00:11.4]} 34...
Ra1+ {[%clk 0:00:15.7]} 35. Kh2 {[%clk 0:00:11.6]} 35... Ne4 {[%clk 0:00:14.9]}
36. Bxe4 {[%clk 0:00:12.5]} 36... fxe4 {[%clk 0:00:15.6]} 37. Rf7+ {[%clk
0:00:12.6]} 37... Kh6 {[%clk 0:00:15.7]} 38. Ng4+ {[%clk 0:00:13.1]} 38... Kg6
{[%clk 0:00:16.1]} 39. Rf6+ {[%clk 0:00:02.9]} 39... Kh7 {[%clk 0:00:16.1]} 40.
Rh6+ {[%clk 0:00:04]} 40... Kg8 {[%clk 0:00:16.8]} 41. Rg6+ {[%clk 0:00:05.2]}
41... Kf7 {[%clk 0:00:17.3]} 0-1

[Event "*** Titled Tuesday Blitz"]
[Site "Chess.com"]
[Date "2019.03.05"]
[Round "1"]
[White "Supernotar"]
[Black "wanyaland"]
[Result "1-0"]
[WhiteElo "2516"]
[BlackElo "2114"]
[TimeControl "180+2"]
[EndTime "13:09:24 PST"]
[Termination "Supernotar won by resignation"]

1. d4 {[%clk 0:03:01.1]} 1... d5 {[%clk 0:03:00.8]} 2. c4 {[%clk 0:03:01.7]}
2... c6 {[%clk 0:03:02.2]} 3. e3 {[%clk 0:03:02.1]} 3... Nf6 {[%clk 0:03:03.7]}
4. Bd3 {[%clk 0:03:03.1]} 4... e6 {[%clk 0:03:05.1]} 5. Nd2 {[%clk 0:03:03.4]}
5... Bd6 {[%clk 0:03:04.9]} 6. Ngf3 {[%clk 0:03:04.4]} 6... Nbd7 {[%clk
0:03:05.2]} 7. O-O {[%clk 0:03:05.4]} 7... O-O {[%clk 0:03:06.3]} 8. e4 {[%clk
0:03:06.5]} 8... dxe4 {[%clk 0:03:07.1]} 9. Nxe4 {[%clk 0:03:07.6]} 9... Nxe4
{[%clk 0:03:08.8]} 10. Bxe4 {[%clk 0:03:08.2]} 10... Nf6 {[%clk 0:03:10.7]} 11.
Bc2 {[%clk 0:03:08.9]} 11... Qc7 {[%clk 0:03:10.2]} 12. Bg5 {[%clk 0:03:07.3]}
12... Be7 {[%clk 0:03:10.7]} 13. Qd3 {[%clk 0:03:07.1]} 13... g6 {[%clk
0:03:11.4]} 14. Ne5 {[%clk 0:03:07.7]} 14... Rd8 {[%clk 0:03:10.7]} 15. Rad1
{[%clk 0:03:06.7]} 15... c5 {[%clk 0:03:10.9]} 16. Qf3 {[%clk 0:03:06.8]} 16...
Kg7 {[%clk 0:03:09.3]} 17. Qf4 {[%clk 0:02:27.7]} 17... Rxd4 {[%clk 0:02:51.1]}
18. Rxd4 {[%clk 0:02:28]} 18... cxd4 {[%clk 0:02:51.5]} 19. Qxd4 {[%clk
0:02:28.3]} 19... b5 {[%clk 0:02:37.6]} 20. Ng4 {[%clk 0:02:03]} 20... e5 {[%clk
0:02:32.3]} 21. Nxe5 {[%clk 0:01:53.8]} 21... bxc4 {[%clk 0:02:29.1]} 22. Nxc4
{[%clk 0:01:43.9]} 22... Be6 {[%clk 0:02:27.5]} 23. Bb3 {[%clk 0:01:37]} 23...
Rd8 {[%clk 0:02:27.4]} 24. Qh4 {[%clk 0:01:35.3]} 24... Nd5 {[%clk 0:02:09]} 25.
Bxe7 {[%clk 0:01:27.4]} 25... Qxe7 {[%clk 0:02:04.3]} 26. Qd4+ {[%clk
0:01:26.3]} 26... Nf6 {[%clk 0:02:05.1]} 27. Qe5 {[%clk 0:01:22.5]} 27... Rd5
{[%clk 0:01:54.3]} 28. Qc3 {[%clk 0:01:21.4]} 28... Rc5 {[%clk 0:01:51.5]} 29.
Qe3 {[%clk 0:01:21.5]} 29... Qc7 {[%clk 0:01:47.9]} 30. Nd2 {[%clk 0:01:16]}
30... Bxb3 {[%clk 0:01:44.2]} 31. Nxb3 {[%clk 0:01:08.8]} 31... Rc2 {[%clk
0:01:44.5]} 32. Qd4 {[%clk 0:01:08.9]} 32... Qc4 {[%clk 0:01:39.5]} 33. Qxc4
{[%clk 0:01:09.1]} 33... Rxc4 {[%clk 0:01:40.7]} 34. Rc1 {[%clk 0:01:10.1]}
34... Rb4 {[%clk 0:01:40.5]} 35. f3 {[%clk 0:01:09.5]} 35... a5 {[%clk
0:01:40.6]} 36. Rc2 {[%clk 0:01:06.6]} 36... a4 {[%clk 0:01:41.1]} 37. Nc5
{[%clk 0:01:03.9]} 37... a3 {[%clk 0:01:36.7]} 38. bxa3 {[%clk 0:01:02.5]} 38...
Rb1+ {[%clk 0:01:37.6]} 39. Kf2 {[%clk 0:01:03.7]} 39... Nd5 {[%clk 0:01:38.4]}
40. Ke2 {[%clk 0:00:58.2]} 40... Kf6 {[%clk 0:01:35.2]} 41. Kd3 {[%clk
0:00:56.9]} 41... Ke5 {[%clk 0:01:33.5]} 42. g3 {[%clk 0:00:48.8]} 42... Rd1+
{[%clk 0:01:32.3]} 43. Ke2 {[%clk 0:00:46.4]} 43... Rb1 {[%clk 0:01:32.1]} 44.
Nb3 {[%clk 0:00:43.5]} 44... f5 {[%clk 0:01:26.4]} 45. f4+ {[%clk 0:00:42.7]}
45... Kd6 {[%clk 0:01:25.1]} 46. Kd3 {[%clk 0:00:39.8]} 46... Rd1+ {[%clk
0:01:21.8]} 47. Rd2 {[%clk 0:00:40.9]} 47... Rxd2+ {[%clk 0:01:16.7]} 48. Kxd2
{[%clk 0:00:39.5]} 48... Nb6 {[%clk 0:01:17.9]} 49. Kd3 {[%clk 0:00:38.9]} 49...
Kd5 {[%clk 0:01:19]} 50. Nd2 {[%clk 0:00:35.4]} 50... h6 {[%clk 0:01:16.2]} 51.
Nb1 {[%clk 0:00:35.8]} 51... g5 {[%clk 0:01:13.1]} 52. Nc3+ {[%clk 0:00:35.2]}
52... Kc5 {[%clk 0:01:14.2]} 53. fxg5 {[%clk 0:00:28.9]} 53... hxg5 {[%clk
0:01:16.1]} 54. h4 {[%clk 0:00:29.9]} 54... gxh4 {[%clk 0:01:12.5]} 55. gxh4
{[%clk 0:00:30.9]} 55... Nc4 {[%clk 0:01:11]} 56. a4 {[%clk 0:00:28.7]} 56...
Ne5+ {[%clk 0:01:08.6]} 57. Ke3 {[%clk 0:00:27.6]} 57... Kc4 {[%clk 0:01:08.1]}
58. a5 {[%clk 0:00:20.9]} 58... Kxc3 {[%clk 0:01:03.9]} 59. a6 {[%clk 0:00:21]}
59... Nc6 {[%clk 0:01:04.4]} 60. h5 {[%clk 0:00:21.3]} 60... Kc4 {[%clk
0:01:05.6]} 61. h6 {[%clk 0:00:21.5]} 1-0

[Event "*** Titled Tuesday Blitz"]
[Site "Chess.com"]
[Date "2019.03.05"]
[Round "1"]
[White "kacprekt"]
[Black "therealtrader"]
[Result "0-1"]
[WhiteElo "2280"]
[BlackElo "2645"]
[TimeControl "180+2"]
[EndTime "13:09:26 PST"]
[Termination "therealtrader won by resignation"]

1. d4 {[%clk 0:03:01.9]} 1... Nf6 {[%clk 0:03:00.7]} 2. c4 {[%clk 0:03:02.2]}
2... e6 {[%clk 0:03:02]} 3. Nc3 {[%clk 0:03:00.2]} 3... Bb4 {[%clk 0:03:02.4]}
4. Nf3 {[%clk 0:03:01.1]} 4... O-O {[%clk 0:03:02.3]} 5. Bg5 {[%clk 0:03:00.1]}
5... b6 {[%clk 0:03:01.5]} 6. e3 {[%clk 0:03:00.2]} 6... Bb7 {[%clk 0:03:02.5]}
7. Bd3 {[%clk 0:02:59.8]} 7... c5 {[%clk 0:02:53.2]} 8. O-O {[%clk 0:02:55.5]}
8... cxd4 {[%clk 0:02:53.3]} 9. exd4 {[%clk 0:02:55.4]} 9... h6 {[%clk
0:02:45.9]} 10. Bh4 {[%clk 0:02:50.4]} 10... Re8 {[%clk 0:02:43.4]} 11. Ne4
{[%clk 0:02:35.5]} 11... Be7 {[%clk 0:02:40.9]} 12. Bxf6 {[%clk 0:02:35.6]}
12... Bxf6 {[%clk 0:02:41.8]} 13. Nd6 {[%clk 0:02:35.9]} 13... Rf8 {[%clk
0:01:58.4]} 14. Nxb7 {[%clk 0:02:32.5]} 14... Qc7 {[%clk 0:01:59.2]} 15. Be4
{[%clk 0:01:39]} 15... d5 {[%clk 0:01:59.8]} 16. cxd5 {[%clk 0:01:37.5]} 16...
Qxb7 {[%clk 0:02:00.6]} 17. Qb3 {[%clk 0:01:33.5]} 17... Rd8 {[%clk 0:02:01.1]}
18. Ne5 {[%clk 0:00:30.4]} 18... exd5 {[%clk 0:01:58.8]} 19. Bf3 {[%clk
0:00:31.3]} 19... Rd6 {[%clk 0:01:46.3]} 20. Rfe1 {[%clk 0:00:32.4]} 20... Nd7
{[%clk 0:01:46.4]} 21. Rac1 {[%clk 0:00:28.2]} 21... Rd8 {[%clk 0:01:46.2]} 22.
Nxd7 {[%clk 0:00:23.4]} 22... Qxd7 {[%clk 0:01:46.7]} 23. Qd3 {[%clk 0:00:17.5]}
23... Qa4 {[%clk 0:01:46.5]} 24. a3 {[%clk 0:00:16]} 24... Qxd4 {[%clk
0:01:47.4]} 25. Qxd4 {[%clk 0:00:17.1]} 25... Bxd4 {[%clk 0:01:48.2]} 26. Rc2
{[%clk 0:00:18.6]} 26... Bf6 {[%clk 0:01:33.3]} 27. Rd1 {[%clk 0:00:20.1]} 27...
d4 {[%clk 0:01:33.6]} 28. Rd3 {[%clk 0:00:21.3]} 28... Re8 {[%clk 0:01:32.2]}
29. g3 {[%clk 0:00:22.9]} 29... Re1+ {[%clk 0:01:32.9]} 30. Kg2 {[%clk
0:00:24.6]} 30... g6 {[%clk 0:01:33.8]} 31. h4 {[%clk 0:00:25.9]} 31... h5
{[%clk 0:01:34.6]} 32. Rc8+ {[%clk 0:00:26.7]} 32... Kg7 {[%clk 0:01:35.4]} 33.
Rc7 {[%clk 0:00:28]} 33... Re7 {[%clk 0:01:35.6]} 34. Rc2 {[%clk 0:00:26.9]}
34... a6 {[%clk 0:01:34.9]} 35. a4 {[%clk 0:00:28]} 35... Re5 {[%clk 0:01:35]}
36. b3 {[%clk 0:00:29.2]} 36... Rc5 {[%clk 0:01:36.1]} 37. Re2 {[%clk
0:00:28.1]} 37... Re6 {[%clk 0:01:37.3]} 38. Be4 {[%clk 0:00:28.7]} 38... Rc3
{[%clk 0:01:38.3]} 39. f3 {[%clk 0:00:27.4]} 39... Re7 {[%clk 0:01:35.7]} 40.
Red2 {[%clk 0:00:23.9]} 40... Rc1 {[%clk 0:01:36]} 41. Rd1 {[%clk 0:00:24.2]}
41... Rc2+ {[%clk 0:01:36]} 42. R1d2 {[%clk 0:00:25.5]} 42... Rec7 {[%clk
0:01:37.6]} 43. Rxd4 {[%clk 0:00:21.6]} 43... Rc1 {[%clk 0:01:26.8]} 44. R4d3
{[%clk 0:00:21.7]} 44... Re1 {[%clk 0:01:25]} 45. Rd7 {[%clk 0:00:18.9]} 45...
Rcc1 {[%clk 0:01:24.9]} 46. Bd5 {[%clk 0:00:19.3]} 46... Rg1+ {[%clk 0:01:25.6]}
47. Kf2 {[%clk 0:00:20.2]} 47... Rcf1+ {[%clk 0:01:25.8]} 48. Ke2 {[%clk
0:00:21.5]} 48... Bc3 {[%clk 0:01:23.3]} 49. Rxf7+ {[%clk 0:00:22]} 49... Kh6
{[%clk 0:01:24.5]} 50. Rd3 {[%clk 0:00:20.4]} 50... Be1 {[%clk 0:01:19]} 51. Be4
{[%clk 0:00:19.5]} 51... Bxg3 {[%clk 0:01:13.6]} 52. Ke3 {[%clk 0:00:14.9]}
52... Bxh4 {[%clk 0:01:13.2]} 53. Kf4 {[%clk 0:00:14.8]} 53... Bg3+ {[%clk
0:01:10.4]} 54. Ke3 {[%clk 0:00:14.3]} 54... Re1+ {[%clk 0:01:11.5]} 55. Kd4
{[%clk 0:00:15.7]} 55... Rd1 {[%clk 0:01:12.2]} 56. Rf6 {[%clk 0:00:14.9]} 56...
Rxd3+ {[%clk 0:01:12.4]} 57. Bxd3 {[%clk 0:00:16.8]} 57... Bf2+ {[%clk
0:01:13.7]} 58. Kc4 {[%clk 0:00:11.3]} 58... h4 {[%clk 0:01:15.5]} 59. Bf5
{[%clk 0:00:09.5]} 59... Kg7 {[%clk 0:01:14.8]} 0-1

[Event "*** Titled Tuesday Blitz"]
[Site "Chess.com"]
[Date "2019.03.05"]
[Round "1"]
[White "shrek4life02"]
[Black "Korchmar_Vasiliy"]
[Result "0-1"]
[WhiteElo "2365"]
[BlackElo "2736"]
[TimeControl "180+2"]
[EndTime "13:09:32 PST"]
[Termination "Korchmar_Vasiliy won on time"]

1. d4 {[%clk 0:03:01.6]} 1... Nf6 {[%clk 0:02:58.9]} 2. Bf4 {[%clk 0:03:03]}
2... d5 {[%clk 0:02:59.8]} 3. Nc3 {[%clk 0:03:04.4]} 3... a6 {[%clk 0:02:54.9]}
4. Nf3 {[%clk 0:03:03.6]} 4... Nbd7 {[%clk 0:02:54.9]} 5. e3 {[%clk 0:03:05]}
5... b5 {[%clk 0:02:53.5]} 6. Be2 {[%clk 0:00:25.5]} 6... Bb7 {[%clk 0:02:53.6]}
7. a3 {[%clk 0:00:26.3]} 7... e6 {[%clk 0:02:53.7]} 8. O-O {[%clk 0:00:28]} 8...
c5 {[%clk 0:02:54.2]} 9. Bg3 {[%clk 0:00:29.7]} 9... Be7 {[%clk 0:02:54.6]} 10.
Ne5 {[%clk 0:00:30.8]} 10... Nxe5 {[%clk 0:02:51.5]} 11. dxe5 {[%clk 0:00:32.3]}
11... Nd7 {[%clk 0:02:50.8]} 12. f4 {[%clk 0:00:34]} 12... O-O {[%clk
0:02:50.3]} 13. Bf3 {[%clk 0:00:35.4]} 13... Nb6 {[%clk 0:02:47.6]} 14. e4
{[%clk 0:00:36.8]} 14... d4 {[%clk 0:02:47]} 15. Ne2 {[%clk 0:00:38.5]} 15...
Nc4 {[%clk 0:02:48.4]} 16. Bf2 {[%clk 0:00:38.5]} 16... Nxb2 {[%clk 0:02:49.2]}
17. Qc1 {[%clk 0:00:39.7]} 17... Nc4 {[%clk 0:02:49.9]} 18. Bg3 {[%clk
0:00:39.6]} 18... Rc8 {[%clk 0:02:44]} 19. f5 {[%clk 0:00:40.6]} 19... Bg5
{[%clk 0:02:44.4]} 20. Qe1 {[%clk 0:00:39.7]} 20... Be3+ {[%clk 0:02:40.8]} 21.
Kh1 {[%clk 0:00:40.7]} 21... Nd2 {[%clk 0:02:42]} 22. f6 {[%clk 0:00:39.6]}
22... Qc7 {[%clk 0:02:04.7]} 23. Rf2 {[%clk 0:00:32.6]} 23... Nxe4 {[%clk
0:01:54.2]} 24. Bxe4 {[%clk 0:00:33]} 24... Bxe4 {[%clk 0:01:56.1]} 25. Nf4
{[%clk 0:00:27.9]} 25... g6 {[%clk 0:01:43.9]} 26. Re2 {[%clk 0:00:24.1]} 26...
Rfd8 {[%clk 0:01:28.3]} 27. Rxe3 {[%clk 0:00:25.2]} 27... dxe3 {[%clk
0:01:30.2]} 28. Qxe3 {[%clk 0:00:26.2]} 28... Qxe5 {[%clk 0:01:31.8]} 29. Rf1
{[%clk 0:00:18.6]} 29... Qd4 {[%clk 0:01:28.4]} 30. Qc1 {[%clk 0:00:17]} 30...
Qd2 {[%clk 0:01:28.1]} 31. Qb2 {[%clk 0:00:17.2]} 31... g5 {[%clk 0:01:25.2]}
32. Qe5 {[%clk 0:00:18]} 32... gxf4 {[%clk 0:01:08.5]} 33. Qg5+ {[%clk
0:00:18.4]} 33... Kf8 {[%clk 0:01:09]} 34. Bxf4 {[%clk 0:00:19.8]} 34... Qxg2+
{[%clk 0:01:02.2]} 35. Qxg2 {[%clk 0:00:20.2]} 35... Bxg2+ {[%clk 0:01:04.1]}
36. Kxg2 {[%clk 0:00:22]} 36... Rd5 {[%clk 0:00:59]} 37. a4 {[%clk 0:00:18.8]}
37... b4 {[%clk 0:00:57.7]} 38. Kf3 {[%clk 0:00:20.1]} 38... c4 {[%clk 0:00:50]}
39. Ke4 {[%clk 0:00:21]} 39... b3 {[%clk 0:00:48.1]} 40. Rg1 {[%clk 0:00:20.1]}
40... b2 {[%clk 0:00:40.2]} 41. c3 {[%clk 0:00:20.5]} 41... Rc6 {[%clk
0:00:24.4]} 42. Rb1 {[%clk 0:00:20]} 42... Rb6 {[%clk 0:00:25.7]} 43. Be3 {[%clk
0:00:21.5]} 43... Rb3 {[%clk 0:00:25.8]} 44. Bd4 {[%clk 0:00:22.4]} 44... Ke8
{[%clk 0:00:26.1]} 45. h4 {[%clk 0:00:23.2]} 45... Kd7 {[%clk 0:00:26.9]} 46.
Ke3 {[%clk 0:00:23.9]} 46... Rh5 {[%clk 0:00:26.6]} 47. Kd2 {[%clk 0:00:25.2]}
47... Rxh4 {[%clk 0:00:27.5]} 48. Ke3 {[%clk 0:00:26.4]} 48... Rh3+ {[%clk
0:00:28]} 49. Ke4 {[%clk 0:00:27.7]} 49... Rh2 {[%clk 0:00:27.1]} 50. Be5 {[%clk
0:00:28.7]} 50... Rc2 {[%clk 0:00:27.5]} 51. Rd1+ {[%clk 0:00:28.1]} 51... Kc8
{[%clk 0:00:26.7]} 0-1

[Event "*** Titled Tuesday Blitz"]
[Site "Chess.com"]
[Date "2019.03.05"]
[Round "1"]
[White "Andrew-FB00"]
[Black "Jbd735"]
[Result "0-1"]
[WhiteElo "1849"]
[BlackElo "2467"]
[TimeControl "180+2"]
[EndTime "13:09:34 PST"]
[Termination "Jbd735 won by resignation"]

1. e4 {[%clk 0:03:01.9]} 1... e5 {[%clk 0:03:00.1]} 2. Nf3 {[%clk 0:03:02.3]}
2... Nc6 {[%clk 0:03:01]} 3. Bb5 {[%clk 0:03:02.7]} 3... a6 {[%clk 0:03:01.7]}
4. Ba4 {[%clk 0:03:03]} 4... Nf6 {[%clk 0:03:02.8]} 5. d4 {[%clk 0:03:03.2]}
5... exd4 {[%clk 0:02:53.4]} 6. O-O {[%clk 0:03:03.3]} 6... Bc5 {[%clk
0:02:13.8]} 7. e5 {[%clk 0:02:49.8]} 7... Nd5 {[%clk 0:02:06.3]} 8. Re1 {[%clk
0:02:31.9]} 8... O-O {[%clk 0:02:04.7]} 9. Bb3 {[%clk 0:02:27.2]} 9... Nb6
{[%clk 0:02:04.3]} 10. Bf4 {[%clk 0:02:08.9]} 10... h6 {[%clk 0:01:54.6]} 11.
Nbd2 {[%clk 0:02:07.5]} 11... Na5 {[%clk 0:01:47.9]} 12. Ne4 {[%clk 0:02:01.6]}
12... Nxb3 {[%clk 0:01:46.6]} 13. axb3 {[%clk 0:02:01.3]} 13... Bb4 {[%clk
0:01:42.8]} 14. Re2 {[%clk 0:01:57.4]} 14... Nd5 {[%clk 0:01:31.8]} 15. Bg3
{[%clk 0:01:49.8]} 15... b6 {[%clk 0:01:12]} 16. Qxd4 {[%clk 0:01:40.2]} 16...
Bb7 {[%clk 0:01:12.5]} 17. c3 {[%clk 0:01:28.6]} 17... Be7 {[%clk 0:01:11.7]}
18. Rd1 {[%clk 0:01:23.5]} 18... c5 {[%clk 0:00:57.6]} 19. Qd2 {[%clk
0:01:18.3]} 19... Bc6 {[%clk 0:00:58.5]} 20. h3 {[%clk 0:01:01.2]} 20... b5
{[%clk 0:00:58.8]} 21. c4 {[%clk 0:01:01]} 21... Nb4 {[%clk 0:00:57.9]} 22. Nd6
{[%clk 0:00:54.1]} 22... Qb6 {[%clk 0:00:41.1]} 23. Qc3 {[%clk 0:00:44.8]} 23...
Rab8 {[%clk 0:00:37.4]} 24. cxb5 {[%clk 0:00:43.9]} 24... axb5 {[%clk
0:00:34.6]} 25. Rc1 {[%clk 0:00:43.3]} 25... Na2 {[%clk 0:00:33]} 26. Qxc5
{[%clk 0:00:42.4]} 26... Nxc1 {[%clk 0:00:33.7]} 27. Qxc1 {[%clk 0:00:42.6]}
27... Bxf3 {[%clk 0:00:34.6]} 28. gxf3 {[%clk 0:00:42.2]} 28... Bxd6 {[%clk
0:00:35.7]} 29. exd6 {[%clk 0:00:42.9]} 29... Rfe8 {[%clk 0:00:36.2]} 30. Re7
{[%clk 0:00:41]} 30... Rxe7 {[%clk 0:00:29.4]} 31. dxe7 {[%clk 0:00:41]} 31...
Re8 {[%clk 0:00:31.3]} 32. Qe1 {[%clk 0:00:25.6]} 32... Qe6 {[%clk 0:00:31.1]}
33. Qb4 {[%clk 0:00:20.3]} 33... Rxe7 {[%clk 0:00:21.3]} 34. Qxb5 {[%clk
0:00:19.5]} 34... Qxh3 {[%clk 0:00:22.2]} 35. Qf1 {[%clk 0:00:19.2]} 35... Qxf1+
{[%clk 0:00:21.2]} 36. Kxf1 {[%clk 0:00:20.3]} 36... d5 {[%clk 0:00:21.1]} 37.
Bd6 {[%clk 0:00:19.8]} 37... Re6 {[%clk 0:00:21.5]} 38. Bc5 {[%clk 0:00:20]}
38... f5 {[%clk 0:00:16.5]} 39. b4 {[%clk 0:00:20.9]} 39... Kf7 {[%clk
0:00:17.7]} 40. b5 {[%clk 0:00:21.8]} 40... Ke8 {[%clk 0:00:18.7]} 41. b6 {[%clk
0:00:22.8]} 41... Kd7 {[%clk 0:00:19.6]} 42. b4 {[%clk 0:00:23.2]} 42... Kc6
{[%clk 0:00:20.3]} 43. Bd4 {[%clk 0:00:22.9]} 43... g5 {[%clk 0:00:20.2]} 44.
Bc5 {[%clk 0:00:23]} 44... f4 {[%clk 0:00:20]} 45. Kg2 {[%clk 0:00:23]} 45... h5
{[%clk 0:00:19.6]} 46. Kg1 {[%clk 0:00:21.4]} 46... Rg6 {[%clk 0:00:15.4]} 47.
Kg2 {[%clk 0:00:21.6]} 47... Rg7 {[%clk 0:00:15.8]} 48. Bf8 {[%clk 0:00:20.8]}
48... Rf7 {[%clk 0:00:16.4]} 49. Bc5 {[%clk 0:00:21.5]} 49... Kb5 {[%clk
0:00:17.2]} 50. Kh3 {[%clk 0:00:21.5]} 50... Kc4 {[%clk 0:00:17.6]} 51. Kg2
{[%clk 0:00:21.6]} 51... d4 {[%clk 0:00:18.5]} 52. Bxd4 {[%clk 0:00:20.5]} 52...
Kxd4 {[%clk 0:00:19.4]} 53. b7 {[%clk 0:00:21.3]} 53... Rxb7 {[%clk 0:00:20.3]}
0-1

[Event "*** Titled Tuesday Blitz"]
[Site "Chess.com"]
[Date "2019.03.05"]
[Round "1"]
[White "ChessWarrior7197"]
[Black "x-3738459472"]
[Result "0-1"]
[WhiteElo "2855"]
[BlackElo "2444"]
[TimeControl "180+2"]
[EndTime "13:09:38 PST"]
[Termination "x-3738459472 won by resignation"]

1. e4 {[%clk 0:03:01.9]} 1... c5 {[%clk 0:02:59.2]} 2. Nf3 {[%clk 0:03:02.4]}
2... Nc6 {[%clk 0:02:59.6]} 3. Bb5 {[%clk 0:03:02.7]} 3... d6 {[%clk 0:03:00.3]}
4. O-O {[%clk 0:03:02.1]} 4... Bd7 {[%clk 0:03:00]} 5. c3 {[%clk 0:03:02.5]}
5... Nf6 {[%clk 0:03:00.1]} 6. Re1 {[%clk 0:03:03.4]} 6... a6 {[%clk 0:03:00.9]}
7. Bc4 {[%clk 0:03:04.6]} 7... Bg4 {[%clk 0:02:56]} 8. d4 {[%clk 0:02:51.1]}
8... cxd4 {[%clk 0:02:51.7]} 9. cxd4 {[%clk 0:02:53]} 9... Bxf3 {[%clk
0:02:46.4]} 10. gxf3 {[%clk 0:02:52.7]} 10... Rc8 {[%clk 0:02:39.5]} 11. Nc3
{[%clk 0:02:44.3]} 11... e5 {[%clk 0:01:56]} 12. d5 {[%clk 0:02:41]} 12... Nd4
{[%clk 0:01:55.6]} 13. Bf1 {[%clk 0:02:42.3]} 13... Be7 {[%clk 0:01:55.5]} 14.
Be3 {[%clk 0:02:40.2]} 14... O-O {[%clk 0:01:56.4]} 15. f4 {[%clk 0:02:38.3]}
15... b5 {[%clk 0:01:50.3]} 16. Bxd4 {[%clk 0:02:28.7]} 16... exd4 {[%clk
0:01:48.2]} 17. Qxd4 {[%clk 0:02:30.6]} 17... Nh5 {[%clk 0:01:48.7]} 18. e5
{[%clk 0:02:26.2]} 18... b4 {[%clk 0:01:45.5]} 19. Ne4 {[%clk 0:02:19.1]} 19...
Nxf4 {[%clk 0:01:38.8]} 20. Nxd6 {[%clk 0:02:18.9]} 20... Bxd6 {[%clk
0:01:20.1]} 21. Qxf4 {[%clk 0:02:19]} 21... Bc5 {[%clk 0:01:19]} 22. Rad1 {[%clk
0:02:16]} 22... Qb6 {[%clk 0:01:16.9]} 23. d6 {[%clk 0:02:15.2]} 23... Rcd8
{[%clk 0:01:15.3]} 24. Bc4 {[%clk 0:02:05]} 24... Kh8 {[%clk 0:01:15.7]} 25. d7
{[%clk 0:01:16.7]} 25... Qc6 {[%clk 0:01:02.8]} 26. Qf5 {[%clk 0:01:10.6]} 26...
Bxf2+ {[%clk 0:01:02.7]} 27. Kxf2 {[%clk 0:01:04.4]} 27... Qxc4 {[%clk
0:01:02.9]} 28. Rd2 {[%clk 0:01:02.2]} 28... Qh4+ {[%clk 0:00:51.6]} 29. Kf1
{[%clk 0:01:00]} 29... Qe7 {[%clk 0:00:46.7]} 30. Re4 {[%clk 0:00:55.1]} 30...
Qc5 {[%clk 0:00:45.3]} 31. Rh4 {[%clk 0:00:50.9]} 31... h6 {[%clk 0:00:42.1]}
32. Rhd4 {[%clk 0:00:40.2]} 32... f6 {[%clk 0:00:37.3]} 33. Rd5 {[%clk
0:00:34.7]} 33... Qc4+ {[%clk 0:00:37.8]} 34. Kg2 {[%clk 0:00:33.7]} 34... fxe5
{[%clk 0:00:38.6]} 35. Qd3 {[%clk 0:00:20.6]} 35... Qg4+ {[%clk 0:00:35.7]} 36.
Qg3 {[%clk 0:00:21.6]} 36... Qe4+ {[%clk 0:00:35.9]} 37. Kg1 {[%clk 0:00:22.5]}
37... Rf5 {[%clk 0:00:31.6]} 38. h4 {[%clk 0:00:18.2]} 38... Rf3 {[%clk
0:00:28.9]} 39. Qg2 {[%clk 0:00:16.7]} 39... Qe1+ {[%clk 0:00:26.6]} 40. Kh2
{[%clk 0:00:16.4]} 40... Qxh4+ {[%clk 0:00:27.1]} 41. Kg1 {[%clk 0:00:17.8]}
41... Rg3 {[%clk 0:00:28.4]} 42. Rxe5 {[%clk 0:00:19.2]} 42... Rxg2+ {[%clk
0:00:27.4]} 43. Kxg2 {[%clk 0:00:20.5]} 43... Kh7 {[%clk 0:00:27.1]} 44. Red5
{[%clk 0:00:18]} 44... Qg4+ {[%clk 0:00:27.6]} 45. Kh2 {[%clk 0:00:19]} 45...
Qf4+ {[%clk 0:00:26.3]} 46. Kg2 {[%clk 0:00:19.6]} 46... a5 {[%clk 0:00:27.6]}
47. R5d4 {[%clk 0:00:19.9]} 47... Qg5+ {[%clk 0:00:28.3]} 48. Kh2 {[%clk
0:00:21]} 48... a4 {[%clk 0:00:28.5]} 49. Rd5 {[%clk 0:00:19.4]} 49... Qf4+
{[%clk 0:00:29.5]} 50. Kg2 {[%clk 0:00:20.4]} 50... b3 {[%clk 0:00:31.4]} 51.
axb3 {[%clk 0:00:21.3]} 51... axb3 {[%clk 0:00:33.3]} 52. R5d4 {[%clk 0:00:23]}
52... Qg5+ {[%clk 0:00:34.1]} 53. Kh2 {[%clk 0:00:24.3]} 53... h5 {[%clk
0:00:35.4]} 54. Rd5 {[%clk 0:00:25.3]} 54... Qf4+ {[%clk 0:00:36.3]} 55. Kg2
{[%clk 0:00:26.6]} 55... h4 {[%clk 0:00:37.6]} 56. R5d3 {[%clk 0:00:27.7]} 56...
g5 {[%clk 0:00:38.1]} 57. Kh3 {[%clk 0:00:26.8]} 57... Qf5+ {[%clk 0:00:36.9]}
58. Kg2 {[%clk 0:00:26.8]} 58... g4 {[%clk 0:00:38.2]} 59. Rd4 {[%clk
0:00:28.2]} 59... Qf3+ {[%clk 0:00:39]} 60. Kg1 {[%clk 0:00:28.8]} 60... h3
{[%clk 0:00:39.4]} 0-1